[Event "*** Titled Tuesday Blitz"]
[Site "Chess.com"]
[Date "2020.04.14"]
[Round "4"]
[White "arminmusovic"]
[Black "Spring199"]
[Result "1-0"]
[WhiteElo "2491"]
[BlackElo "2310"]
[TimeControl "180+1"]
[EndTime "10:38:51 PDT"]
[Termination "arminmusovic won by checkmate"]

1. a3 {[%clk 0:03:00.9]} 1... e5 {[%clk 0:02:59.3]} 2. Nc3 {[%clk 0:03:00.7]}
2... d5 {[%clk 0:02:58.8]} 3. d4 {[%clk 0:03:01.1]} 3... e4 {[%clk 0:02:58.3]}
4. Bf4 {[%clk 0:03:01.3]} 4... g6 {[%clk 0:02:55.8]} 5. Be5 {[%clk 0:03:01.3]}
5... f6 {[%clk 0:02:53.6]} 6. Bg3 {[%clk 0:03:01.4]} 6... Bg7 {[%clk 0:02:53.1]}
7. e3 {[%clk 0:02:56.9]} 7... Ne7 {[%clk 0:02:52.7]} 8. Nb5 {[%clk 0:02:55]}
8... Na6 {[%clk 0:02:51.3]} 9. c4 {[%clk 0:02:55.4]} 9... O-O {[%clk 0:02:33.9]}
10. cxd5 {[%clk 0:02:49.1]} 10... Nxd5 {[%clk 0:02:33.2]} 11. Bc4 {[%clk
0:02:43]} 11... Kh8 {[%clk 0:02:27.3]} 12. Ne2 {[%clk 0:02:34]} 12... Nb6 {[%clk
0:02:22.1]} 13. Ba2 {[%clk 0:02:30.4]} 13... Bg4 {[%clk 0:02:19.6]} 14. h3
{[%clk 0:02:29.6]} 14... Bf5 {[%clk 0:02:17.7]} 15. Rc1 {[%clk 0:02:27.7]} 15...
c6 {[%clk 0:02:04.8]} 16. Nd6 {[%clk 0:02:27]} 16... Qd7 {[%clk 0:02:04.3]} 17.
O-O {[%clk 0:02:16.5]} 17... Nc8 {[%clk 0:01:48.5]} 18. Nxf5 {[%clk 0:02:04.4]}
18... Qxf5 {[%clk 0:01:47.2]} 19. d5 {[%clk 0:01:58.1]} 19... cxd5 {[%clk
0:01:34.7]} 20. Qxd5 {[%clk 0:01:54.4]} 20... Nb6 {[%clk 0:00:26.9]} 21. Qxf5
{[%clk 0:01:53.4]} 21... gxf5 {[%clk 0:00:26.5]} 22. Nd4 {[%clk 0:01:54.1]}
22... f4 {[%clk 0:00:21.3]} 23. Bxf4 {[%clk 0:01:54]} 23... f5 {[%clk
0:00:20.9]} 24. Ne6 {[%clk 0:01:50.4]} 24... Bxb2 {[%clk 0:00:20.4]} 25. Nxf8
{[%clk 0:01:46]} 25... Rxf8 {[%clk 0:00:19.9]} 26. Rfd1 {[%clk 0:01:38.7]} 26...
h5 {[%clk 0:00:17.2]} 27. Rc2 {[%clk 0:01:37.1]} 27... Bxa3 {[%clk 0:00:16.5]}
28. Rcd2 {[%clk 0:01:09.8]} 28... Bb4 {[%clk 0:00:07.8]} 29. Rd4 {[%clk
0:01:07.6]} 29... Bc5 {[%clk 0:00:06.9]} 30. Rd8 {[%clk 0:01:07.1]} 30... Rxd8
{[%clk 0:00:05.8]} 31. Be5+ {[%clk 0:01:07.6]} 31... Kh7 {[%clk 0:00:04.9]} 32.
Rxd8 {[%clk 0:01:08.5]} 32... Nb4 {[%clk 0:00:04.7]} 33. Bf7 {[%clk 0:01:07.3]}
33... Nd3 {[%clk 0:00:04.4]} 34. Rh8# {[%clk 0:01:07.3]} 1-0

[Event "*** Titled Tuesday Blitz"]
[Site "Chess.com"]
[Date "2020.04.14"]
[Round "4"]
[White "WIDBIFS"]
[Black "Bigfish1995"]
[Result "0-1"]
[WhiteElo "2785"]
[BlackElo "3099"]
[TimeControl "180+1"]
[EndTime "10:38:53 PDT"]
[Termination "Bigfish1995 won by resignation"]

1. d4 {[%clk 0:02:59.4]} 1... Nf6 {[%clk 0:02:59.5]} 2. Nf3 {[%clk 0:02:59.7]}
2... e6 {[%clk 0:02:59.9]} 3. Bf4 {[%clk 0:02:59.6]} 3... c5 {[%clk 0:02:59]} 4.
e3 {[%clk 0:02:59.9]} 4... b6 {[%clk 0:02:59.4]} 5. Nbd2 {[%clk 0:03:00.4]} 5...
Bb7 {[%clk 0:02:59.7]} 6. h3 {[%clk 0:03:00.5]} 6... Be7 {[%clk 0:03:00]} 7. c3
{[%clk 0:03:01]} 7... O-O {[%clk 0:03:00.6]} 8. Bd3 {[%clk 0:03:01.5]} 8... cxd4
{[%clk 0:02:58.2]} 9. exd4 {[%clk 0:03:00.6]} 9... d6 {[%clk 0:02:57.4]} 10. O-O
{[%clk 0:03:00.1]} 10... a6 {[%clk 0:02:57.4]} 11. Bh2 {[%clk 0:03:00.4]} 11...
Nbd7 {[%clk 0:02:56.7]} 12. Qe2 {[%clk 0:03:01]} 12... Re8 {[%clk 0:02:55.7]}
13. Rfe1 {[%clk 0:02:58]} 13... Bf8 {[%clk 0:02:55.7]} 14. Rad1 {[%clk
0:02:51.5]} 14... b5 {[%clk 0:02:46.9]} 15. a3 {[%clk 0:02:50.6]} 15... Nb6
{[%clk 0:02:43.7]} 16. Nf1 {[%clk 0:02:28.4]} 16... Rc8 {[%clk 0:02:42]} 17. Ne3
{[%clk 0:02:27.3]} 17... g6 {[%clk 0:02:37.6]} 18. Nd2 {[%clk 0:02:11.2]} 18...
Bg7 {[%clk 0:02:33.2]} 19. Ng4 {[%clk 0:02:09.6]} 19... Nfd5 {[%clk 0:02:18.6]}
20. Ne3 {[%clk 0:01:56.6]} 20... Na4 {[%clk 0:02:08.7]} 21. Ne4 {[%clk
0:01:36.7]} 21... Nxe3 {[%clk 0:02:08.7]} 22. fxe3 {[%clk 0:01:34.1]} 22... e5
{[%clk 0:02:08.5]} 23. dxe5 {[%clk 0:01:04.3]} 23... Bxe5 {[%clk 0:02:04]} 24.
Bxe5 {[%clk 0:01:04.3]} 24... Rxe5 {[%clk 0:02:04.9]} 25. Nxd6 {[%clk
0:00:38.1]} 25... Qxd6 {[%clk 0:01:57.2]} 26. Bxb5 {[%clk 0:00:38]} 26... Qxd1
{[%clk 0:01:44]} 27. Qxd1 {[%clk 0:00:30.4]} 27... axb5 {[%clk 0:01:43.6]} 28.
Qd7 {[%clk 0:00:28]} 28... Nc5 {[%clk 0:01:42.7]} 29. Qd6 {[%clk 0:00:25.9]}
29... Rd5 {[%clk 0:01:41.2]} 30. Qb6 {[%clk 0:00:22.3]} 30... Rd2 {[%clk
0:01:28.2]} 31. e4 {[%clk 0:00:16.8]} 31... Bxe4 {[%clk 0:01:21.1]} 32. Rxe4
{[%clk 0:00:16.7]} 32... Nxe4 {[%clk 0:01:20.4]} 33. Qxb5 {[%clk 0:00:17.2]}
33... Nd6 {[%clk 0:01:12.8]} 34. Qd7 {[%clk 0:00:16.5]} 34... Re8 {[%clk
0:01:12.9]} 35. a4 {[%clk 0:00:12.3]} 35... Ree2 {[%clk 0:01:11.9]} 36. Qc6
{[%clk 0:00:12.4]} 36... Ne4 {[%clk 0:01:11.9]} 37. Qc8+ {[%clk 0:00:10.8]}
37... Kg7 {[%clk 0:01:12.1]} 38. Qg4 {[%clk 0:00:11.7]} 38... Re1+ {[%clk
0:01:11.3]} 39. Kh2 {[%clk 0:00:11.8]} 39... Rh1+ {[%clk 0:01:11.1]} 0-1

[Event "*** Titled Tuesday Blitz"]
[Site "Chess.com"]
[Date "2020.04.14"]
[Round "4"]
[White "Firegrizzly"]
[Black "Zkid"]
[Result "1/2-1/2"]
[WhiteElo "2587"]
[BlackElo "2816"]
[TimeControl "180+1"]
[EndTime "10:38:53 PDT"]
[Termination "Game drawn by repetition"]

1. d4 {[%clk 0:03:00.9]} 1... d5 {[%clk 0:02:59.5]} 2. Nf3 {[%clk 0:03:00]} 2...
Nf6 {[%clk 0:02:59.2]} 3. Bg5 {[%clk 0:02:59.1]} 3... Ne4 {[%clk 0:02:56.6]} 4.
h4 {[%clk 0:02:57.4]} 4... Bf5 {[%clk 0:02:52.2]} 5. e3 {[%clk 0:02:56.5]} 5...
c6 {[%clk 0:02:52.3]} 6. c3 {[%clk 0:02:55.7]} 6... Qb6 {[%clk 0:02:50.6]} 7.
Qb3 {[%clk 0:02:55.3]} 7... Nd7 {[%clk 0:02:49.7]} 8. Nbd2 {[%clk 0:02:54.3]}
8... e6 {[%clk 0:02:46.7]} 9. Be2 {[%clk 0:02:52.4]} 9... Bd6 {[%clk 0:02:44.3]}
10. Rg1 {[%clk 0:02:47.4]} 10... Nxg5 {[%clk 0:02:37.9]} 11. hxg5 {[%clk
0:02:45.2]} 11... O-O-O {[%clk 0:02:36.4]} 12. Qxb6 {[%clk 0:02:38.6]} 12...
axb6 {[%clk 0:02:35.9]} 13. a4 {[%clk 0:02:38.3]} 13... h6 {[%clk 0:02:33.5]}
14. gxh6 {[%clk 0:02:26.8]} 14... Rxh6 {[%clk 0:02:32.6]} 15. Ng5 {[%clk
0:02:21.3]} 15... Bg6 {[%clk 0:02:22.6]} 16. Nh3 {[%clk 0:02:13.1]} 16... Rdh8
{[%clk 0:02:17.8]} 17. Bf3 {[%clk 0:02:09.8]} 17... Bf5 {[%clk 0:02:13]} 18. Nf4
{[%clk 0:02:09.1]} 18... g5 {[%clk 0:02:12.9]} 19. Nh3 {[%clk 0:02:02.6]} 19...
g4 {[%clk 0:02:12]} 20. Ng5 {[%clk 0:02:02.1]} 20... gxf3 {[%clk 0:02:10.8]} 21.
Nxf7 {[%clk 0:02:00.3]} 21... Bh2 {[%clk 0:02:07.6]} 22. Nxh6 {[%clk 0:01:52.7]}
22... Rxh6 {[%clk 0:02:05.9]} 23. Nxf3 {[%clk 0:01:50.8]} 23... Bxg1 {[%clk
0:02:05.7]} 24. Nxg1 {[%clk 0:01:51.7]} 24... Rh2 {[%clk 0:02:01.7]} 25. g3
{[%clk 0:01:44.3]} 25... Bg4 {[%clk 0:01:54]} 26. b4 {[%clk 0:01:40.3]} 26...
Nf6 {[%clk 0:01:51.3]} 27. f3 {[%clk 0:01:39]} 27... Bxf3 {[%clk 0:01:49.9]} 28.
a5 {[%clk 0:01:31.3]} 28... Bg4 {[%clk 0:01:37.4]} 29. axb6 {[%clk 0:01:29.7]}
29... Ne4 {[%clk 0:01:35]} 30. Ra8+ {[%clk 0:01:26.3]} 30... Kd7 {[%clk
0:01:34.9]} 31. Rb8 {[%clk 0:01:24.7]} 31... Ra2 {[%clk 0:01:29.3]} 32. Rxb7+
{[%clk 0:01:20.3]} 32... Kd6 {[%clk 0:01:29.1]} 33. Kf1 {[%clk 0:01:18.2]} 33...
Nxg3+ {[%clk 0:01:28.9]} 34. Ke1 {[%clk 0:01:17.6]} 34... Ne4 {[%clk 0:01:28.3]}
35. Kf1 {[%clk 0:01:17.9]} 35... Ng3+ {[%clk 0:01:14.7]} 36. Ke1 {[%clk
0:01:16.9]} 36... Rg2 {[%clk 0:01:14]} 37. Rg7 {[%clk 0:01:13.1]} 37... Ne4
{[%clk 0:00:35.7]} 38. Kf1 {[%clk 0:01:10.7]} 38... Rf2+ {[%clk 0:00:27.8]} 39.
Ke1 {[%clk 0:01:10.2]} 39... Rg2 {[%clk 0:00:27.8]} 40. Kf1 {[%clk 0:01:09.7]}
40... Rb2 {[%clk 0:00:28.4]} 41. b7 {[%clk 0:01:03.1]} 41... Rb1+ {[%clk
0:00:24.5]} 42. Kg2 {[%clk 0:01:02.5]} 42... Rb2+ {[%clk 0:00:24.6]} 43. Kf1
{[%clk 0:00:59.3]} 43... Rb1+ {[%clk 0:00:23.3]} 44. Kg2 {[%clk 0:00:57.7]}
44... Rb2+ {[%clk 0:00:24.2]} 45. Kf1 {[%clk 0:00:56.7]} 1/2-1/2

[Event "*** Titled Tuesday Blitz"]
[Site "Chess.com"]
[Date "2020.04.14"]
[Round "4"]
[White "viditchess"]
[Black "Darhild"]
[Result "1/2-1/2"]
[WhiteElo "2979"]
[BlackElo "2715"]
[TimeControl "180+1"]
[EndTime "10:38:54 PDT"]
[Termination "Game drawn by repetition"]

1. d4 {[%clk 0:03:00.9]} 1... Nf6 {[%clk 0:02:53.8]} 2. c4 {[%clk 0:03:01.1]}
2... g6 {[%clk 0:02:54.2]} 3. Nc3 {[%clk 0:03:01.2]} 3... d5 {[%clk 0:02:54.8]}
4. cxd5 {[%clk 0:03:02.1]} 4... Nxd5 {[%clk 0:02:55.7]} 5. e4 {[%clk 0:03:02.8]}
5... Nxc3 {[%clk 0:02:55.7]} 6. bxc3 {[%clk 0:03:03.7]} 6... Bg7 {[%clk
0:02:55.1]} 7. Be3 {[%clk 0:03:04]} 7... c5 {[%clk 0:02:53.7]} 8. Nf3 {[%clk
0:03:04.4]} 8... Qa5 {[%clk 0:02:53.4]} 9. Qd2 {[%clk 0:03:04.6]} 9... Nc6
{[%clk 0:02:53.3]} 10. Rb1 {[%clk 0:03:04]} 10... a6 {[%clk 0:02:53.6]} 11. Rc1
{[%clk 0:03:04.3]} 11... cxd4 {[%clk 0:02:54]} 12. cxd4 {[%clk 0:03:05.2]} 12...
Qxd2+ {[%clk 0:02:54.5]} 13. Kxd2 {[%clk 0:03:06.1]} 13... f5 {[%clk 0:02:54.3]}
14. e5 {[%clk 0:03:02.8]} 14... e6 {[%clk 0:02:41.9]} 15. Bc4 {[%clk 0:02:36.1]}
15... O-O {[%clk 0:02:41.5]} 16. Ke2 {[%clk 0:02:32.5]} 16... Bd7 {[%clk
0:02:41.6]} 17. d5 {[%clk 0:01:51.4]} 17... Nxe5 {[%clk 0:02:35.6]} 18. Nxe5
{[%clk 0:01:50.7]} 18... Bxe5 {[%clk 0:02:36.5]} 19. dxe6 {[%clk 0:01:50.8]}
19... Bb5 {[%clk 0:02:36.3]} 20. Bxb5 {[%clk 0:01:02.4]} 20... axb5 {[%clk
0:02:36.1]} 21. Rc5 {[%clk 0:01:03]} 21... Bf6 {[%clk 0:01:23.4]} 22. Rxb5
{[%clk 0:01:02.1]} 22... Rfe8 {[%clk 0:01:21.6]} 23. Rxb7 {[%clk 0:00:57.4]}
23... Rxa2+ {[%clk 0:01:10.6]} 24. Kf3 {[%clk 0:00:57.4]} 24... Rxe6 {[%clk
0:01:11.1]} 25. Rd1 {[%clk 0:00:56.1]} 25... Re7 {[%clk 0:00:58.5]} 26. Rxe7
{[%clk 0:00:55.6]} 26... Bxe7 {[%clk 0:00:58.6]} 27. Rd7 {[%clk 0:00:56.2]}
27... Bf6 {[%clk 0:00:53.6]} 28. g3 {[%clk 0:00:54.3]} 28... Ra3 {[%clk
0:00:47.5]} 29. h4 {[%clk 0:00:53.5]} 29... h5 {[%clk 0:00:42]} 30. Kg2 {[%clk
0:00:51]} 30... Ra6 {[%clk 0:00:39.8]} 31. Rb7 {[%clk 0:00:50.4]} 31... Rc6
{[%clk 0:00:39.5]} 32. Kf3 {[%clk 0:00:50.2]} 32... Re6 {[%clk 0:00:39.5]} 33.
Rd7 {[%clk 0:00:48]} 33... Rc6 {[%clk 0:00:39.4]} 34. Bd4 {[%clk 0:00:47.2]}
34... Bxd4 {[%clk 0:00:38.8]} 35. Rxd4 {[%clk 0:00:48.1]} 35... Kf7 {[%clk
0:00:36]} 36. Kf4 {[%clk 0:00:48.4]} 36... Kf6 {[%clk 0:00:36.5]} 37. f3 {[%clk
0:00:48.9]} 37... Rb6 {[%clk 0:00:36.4]} 38. Rc4 {[%clk 0:00:48.5]} 38... Rd6
{[%clk 0:00:36.2]} 39. Rb4 {[%clk 0:00:48.5]} 39... Ra6 {[%clk 0:00:36.2]} 40.
Rd4 {[%clk 0:00:48.7]} 40... Rb6 {[%clk 0:00:36.2]} 41. Rc4 {[%clk 0:00:45.4]}
41... Ra6 {[%clk 0:00:36.4]} 42. Rd4 {[%clk 0:00:45.6]} 42... Rb6 {[%clk
0:00:36.5]} 1/2-1/2

[Event "*** Titled Tuesday Blitz"]
[Site "Chess.com"]
[Date "2020.04.14"]
[Round "4"]
[White "MattyDPerrine"]
[Black "Semetey"]
[Result "0-1"]
[WhiteElo "2336"]
[BlackElo "2556"]
[TimeControl "180+1"]
[EndTime "10:38:55 PDT"]
[Termination "Semetey won on time"]

1. Nf3 {[%clk 0:03:00.9]} 1... d5 {[%clk 0:02:58.4]} 2. c4 {[%clk 0:02:59.2]}
2... e6 {[%clk 0:02:55.6]} 3. g3 {[%clk 0:02:56.2]} 3... Nf6 {[%clk 0:02:55.3]}
4. Bg2 {[%clk 0:02:52]} 4... Be7 {[%clk 0:02:53.9]} 5. O-O {[%clk 0:02:40.3]}
5... dxc4 {[%clk 0:02:52.5]} 6. Qc2 {[%clk 0:02:34.9]} 6... Nbd7 {[%clk
0:02:46.2]} 7. Na3 {[%clk 0:02:28.6]} 7... c5 {[%clk 0:02:42.6]} 8. Nxc4 {[%clk
0:02:20.9]} 8... O-O {[%clk 0:02:42.4]} 9. d3 {[%clk 0:02:15.7]} 9... b5 {[%clk
0:02:32.9]} 10. Nfe5 {[%clk 0:02:13.2]} 10... Nd5 {[%clk 0:02:22.6]} 11. Nc6
{[%clk 0:02:04.4]} 11... Qe8 {[%clk 0:02:20.8]} 12. Nxe7+ {[%clk 0:01:27.7]}
12... Qxe7 {[%clk 0:02:20.3]} 13. Na5 {[%clk 0:01:22.2]} 13... N7b6 {[%clk
0:02:15.6]} 14. a3 {[%clk 0:01:14.1]} 14... e5 {[%clk 0:02:00.5]} 15. e4 {[%clk
0:00:53.9]} 15... Nc7 {[%clk 0:01:59.5]} 16. Be3 {[%clk 0:00:53.1]} 16... Ne6
{[%clk 0:01:59.4]} 17. Rac1 {[%clk 0:00:46.1]} 17... Nd7 {[%clk 0:01:53]} 18. f4
{[%clk 0:00:30.6]} 18... Ba6 {[%clk 0:01:32.5]} 19. Nc6 {[%clk 0:00:19.4]} 19...
Qd6 {[%clk 0:01:32]} 20. Nxe5 {[%clk 0:00:18.5]} 20... Nxe5 {[%clk 0:01:31.6]}
21. fxe5 {[%clk 0:00:19.4]} 21... Qxe5 {[%clk 0:01:31.8]} 22. Rf5 {[%clk
0:00:20.1]} 22... Qd6 {[%clk 0:01:30.1]} 23. e5 {[%clk 0:00:18]} 23... Qd8
{[%clk 0:01:27.5]} 24. Bxa8 {[%clk 0:00:14.9]} 24... Qxa8 {[%clk 0:01:28]} 25.
Qf2 {[%clk 0:00:14]} 25... Qd5 {[%clk 0:01:25.8]} 26. Bxc5 {[%clk 0:00:09.6]}
26... Bb7 {[%clk 0:01:25.8]} 27. Kf1 {[%clk 0:00:05.8]} 27... Qxd3+ {[%clk
0:01:24.6]} 28. Kg1 {[%clk 0:00:04.1]} 28... Qd5 {[%clk 0:01:24.2]} 29. Kf1
{[%clk 0:00:04.4]} 29... Qh1+ {[%clk 0:01:22]} 30. Qg1 {[%clk 0:00:02.4]} 30...
Qe4 {[%clk 0:01:17.4]} 31. Qf2 {[%clk 0:00:02.4]} 31... Qd3+ {[%clk 0:01:12.6]}
32. Kg1 {[%clk 0:00:02.4]} 32... Ng5 {[%clk 0:01:12]} 0-1

[Event "*** Titled Tuesday Blitz"]
[Site "Chess.com"]
[Date "2020.04.14"]
[Round "4"]
[White "Haridaskesavan"]
[Black "maxip32"]
[Result "0-1"]
[WhiteElo "2211"]
[BlackElo "2426"]
[TimeControl "180+1"]
[EndTime "10:38:55 PDT"]
[Termination "maxip32 won by resignation"]

1. e4 {[%clk 0:03:00.9]} 1... c5 {[%clk 0:02:58.6]} 2. c3 {[%clk 0:03:00.5]}
2... Nf6 {[%clk 0:02:57.7]} 3. Bd3 {[%clk 0:02:58.4]} 3... e5 {[%clk 0:02:46.4]}
4. Bc2 {[%clk 0:02:58]} 4... Nc6 {[%clk 0:02:42]} 5. d3 {[%clk 0:02:57.9]} 5...
d5 {[%clk 0:02:41]} 6. Nd2 {[%clk 0:02:56.8]} 6... Be7 {[%clk 0:02:40.4]} 7.
Ngf3 {[%clk 0:02:56.6]} 7... O-O {[%clk 0:02:40.2]} 8. O-O {[%clk 0:02:56.3]}
8... b6 {[%clk 0:02:33.2]} 9. Re1 {[%clk 0:02:54.5]} 9... d4 {[%clk 0:02:22.9]}
10. c4 {[%clk 0:02:51.9]} 10... a6 {[%clk 0:02:08.9]} 11. Nf1 {[%clk 0:02:50]}
11... b5 {[%clk 0:02:08.3]} 12. b3 {[%clk 0:02:49.7]} 12... Re8 {[%clk
0:02:06.8]} 13. Ng3 {[%clk 0:02:48]} 13... g6 {[%clk 0:02:06.5]} 14. h3 {[%clk
0:02:38.1]} 14... Bf8 {[%clk 0:02:06.3]} 15. Qd2 {[%clk 0:02:31.7]} 15... h6
{[%clk 0:02:04.9]} 16. Bd1 {[%clk 0:02:31.6]} 16... Rb8 {[%clk 0:01:53.9]} 17.
Be2 {[%clk 0:02:30.4]} 17... bxc4 {[%clk 0:01:46.5]} 18. bxc4 {[%clk 0:02:29.5]}
18... Bd7 {[%clk 0:01:34.1]} 19. Qd1 {[%clk 0:02:24.4]} 19... Qc7 {[%clk
0:01:11.4]} 20. Nh2 {[%clk 0:02:23.3]} 20... Rb7 {[%clk 0:01:10.1]} 21. Ng4
{[%clk 0:02:20.1]} 21... Nxg4 {[%clk 0:01:10.2]} 22. Bxg4 {[%clk 0:02:18.9]}
22... Bxg4 {[%clk 0:01:10]} 23. Qxg4 {[%clk 0:02:17.8]} 23... Nb4 {[%clk
0:01:10.9]} 24. Qe2 {[%clk 0:02:13.9]} 24... Qa5 {[%clk 0:01:09.4]} 25. Rf1
{[%clk 0:02:07.4]} 25... Qa4 {[%clk 0:01:08.2]} 26. a3 {[%clk 0:01:48.1]} 26...
Nc6 {[%clk 0:00:45.2]} 27. f4 {[%clk 0:01:44.3]} 27... exf4 {[%clk 0:00:45]} 28.
Bxf4 {[%clk 0:01:42.5]} 28... Ne5 {[%clk 0:00:43]} 29. Rf2 {[%clk 0:01:16]}
29... Qb3 {[%clk 0:00:39.8]} 30. Bxe5 {[%clk 0:01:13.2]} 30... Rxe5 {[%clk
0:00:40.7]} 31. Raf1 {[%clk 0:01:09]} 31... Qxa3 {[%clk 0:00:38.5]} 32. Qg4
{[%clk 0:01:05.9]} 32... Qxd3 {[%clk 0:00:16.6]} 33. Qc8 {[%clk 0:01:01.7]}
33... Rbe7 {[%clk 0:00:15.5]} 34. Qxc5 {[%clk 0:00:57.9]} 34... Rxc5 {[%clk
0:00:15.1]} 35. e5 {[%clk 0:00:56.6]} 35... Rcxe5 {[%clk 0:00:14.5]} 0-1

[Event "*** Titled Tuesday Blitz"]
[Site "Chess.com"]
[Date "2020.04.14"]
[Round "4"]
[White "Tonychess32"]
[Black "bancsoo"]
[Result "0-1"]
[WhiteElo "2538"]
[BlackElo "2760"]
[TimeControl "180+1"]
[EndTime "10:38:57 PDT"]
[Termination "bancsoo won by resignation"]

1. e4 {[%clk 0:03:00.9]} 1... c5 {[%clk 0:02:58.7]} 2. Nf3 {[%clk 0:03:00.6]}
2... Nc6 {[%clk 0:02:59.1]} 3. c3 {[%clk 0:03:00.3]} 3... Nf6 {[%clk 0:02:53.3]}
4. e5 {[%clk 0:03:00.7]} 4... Nd5 {[%clk 0:02:53.7]} 5. d4 {[%clk 0:03:01.3]}
5... cxd4 {[%clk 0:02:54.1]} 6. cxd4 {[%clk 0:03:02.2]} 6... d6 {[%clk
0:02:54.6]} 7. exd6 {[%clk 0:03:01.8]} 7... e6 {[%clk 0:02:53]} 8. Bd3 {[%clk
0:03:01.9]} 8... Bxd6 {[%clk 0:02:52.7]} 9. O-O {[%clk 0:03:02.1]} 9... O-O
{[%clk 0:02:50.9]} 10. Nc3 {[%clk 0:03:02.5]} 10... Nf6 {[%clk 0:02:50.4]} 11.
Qe2 {[%clk 0:02:57.2]} 11... b6 {[%clk 0:02:49]} 12. Bg5 {[%clk 0:02:55.7]}
12... Bb7 {[%clk 0:02:28.2]} 13. Rad1 {[%clk 0:02:37.3]} 13... Nb4 {[%clk
0:02:23.9]} 14. Bb1 {[%clk 0:02:29]} 14... Nbd5 {[%clk 0:02:22.9]} 15. Ne4
{[%clk 0:02:26.9]} 15... Be7 {[%clk 0:02:22.4]} 16. Ng3 {[%clk 0:02:12.1]} 16...
h6 {[%clk 0:02:16.9]} 17. Bd2 {[%clk 0:02:11.9]} 17... a5 {[%clk 0:02:12.2]} 18.
Rfe1 {[%clk 0:02:08]} 18... Ba6 {[%clk 0:02:08.9]} 19. Bd3 {[%clk 0:02:00.5]}
19... Bxd3 {[%clk 0:02:07.9]} 20. Qxd3 {[%clk 0:02:01.4]} 20... Rc8 {[%clk
0:02:07.2]} 21. Ne5 {[%clk 0:01:57.4]} 21... Bb4 {[%clk 0:02:07]} 22. a3 {[%clk
0:01:24.7]} 22... Bxd2 {[%clk 0:02:06.7]} 23. Rxd2 {[%clk 0:01:25]} 23... Qc7
{[%clk 0:02:04.6]} 24. Qf3 {[%clk 0:01:17.6]} 24... Rfd8 {[%clk 0:02:02.7]} 25.
h3 {[%clk 0:01:16]} 25... b5 {[%clk 0:02:01.1]} 26. Rde2 {[%clk 0:01:15.6]}
26... b4 {[%clk 0:01:59]} 27. axb4 {[%clk 0:01:15.4]} 27... Nxb4 {[%clk
0:01:58.9]} 28. Ne4 {[%clk 0:01:10.4]} 28... Nxe4 {[%clk 0:01:54]} 29. Rxe4
{[%clk 0:01:10.7]} 29... Nc2 {[%clk 0:01:46.7]} 30. Rd1 {[%clk 0:00:59.9]} 30...
Nxd4 {[%clk 0:01:45.1]} 31. Rexd4 {[%clk 0:00:16.5]} 31... Rxd4 {[%clk 0:01:46]}
32. Rxd4 {[%clk 0:00:15.5]} 32... Qxe5 {[%clk 0:01:46]} 33. Rd1 {[%clk
0:00:08.3]} 33... Qxb2 {[%clk 0:01:43.9]} 34. Qe3 {[%clk 0:00:07.2]} 34... a4
{[%clk 0:01:40.9]} 35. Qa7 {[%clk 0:00:05.7]} 35... a3 {[%clk 0:01:38.1]} 36.
Kh2 {[%clk 0:00:03.1]} 36... a2 {[%clk 0:01:34.3]} 37. g3 {[%clk 0:00:03]} 37...
g6 {[%clk 0:01:21.5]} 38. Kg2 {[%clk 0:00:03.2]} 38... Rc2 {[%clk 0:01:12.6]}
39. Rd8+ {[%clk 0:00:02]} 39... Kg7 {[%clk 0:01:12.5]} 40. Qe3 {[%clk
0:00:01.1]} 40... Rxf2+ {[%clk 0:01:11]} 41. Qxf2 {[%clk 0:00:01.1]} 41... Qxf2+
{[%clk 0:01:11.2]} 42. Kxf2 {[%clk 0:00:01.7]} 42... a1=Q {[%clk 0:01:11.7]} 0-1

[Event "*** Titled Tuesday Blitz"]
[Site "Chess.com"]
[Date "2020.04.14"]
[Round "4"]
[White "YumiBear"]
[Black "Embrujada"]
[Result "1-0"]
[WhiteElo "2525"]
[BlackElo "2320"]
[TimeControl "180+1"]
[EndTime "10:38:57 PDT"]
[Termination "YumiBear won by resignation"]

1. d4 {[%clk 0:03:00.9]} 1... Nf6 {[%clk 0:02:57.9]} 2. c4 {[%clk 0:03:01.1]}
2... d6 {[%clk 0:02:58.4]} 3. Nf3 {[%clk 0:03:00.4]} 3... g6 {[%clk 0:02:56.4]}
4. g3 {[%clk 0:03:00.6]} 4... Bf5 {[%clk 0:02:56.8]} 5. Bg2 {[%clk 0:03:00.8]}
5... Bg7 {[%clk 0:02:57.4]} 6. O-O {[%clk 0:02:58.5]} 6... O-O {[%clk
0:02:57.8]} 7. Nc3 {[%clk 0:02:58.9]} 7... Nc6 {[%clk 0:02:53.5]} 8. Nh4 {[%clk
0:02:56.4]} 8... Bd7 {[%clk 0:02:47.8]} 9. b3 {[%clk 0:02:48.1]} 9... e5 {[%clk
0:02:35.9]} 10. d5 {[%clk 0:02:47.9]} 10... Ne7 {[%clk 0:02:35.3]} 11. e4 {[%clk
0:02:47.3]} 11... a6 {[%clk 0:02:24.6]} 12. Qd3 {[%clk 0:02:38.2]} 12... b5
{[%clk 0:02:17.6]} 13. cxb5 {[%clk 0:02:35.1]} 13... axb5 {[%clk 0:02:18.1]} 14.
Nxb5 {[%clk 0:02:35.3]} 14... Nxe4 {[%clk 0:02:18.3]} 15. Bxe4 {[%clk
0:02:11.9]} 15... f5 {[%clk 0:02:17.9]} 16. Nc3 {[%clk 0:02:12]} 16... fxe4
{[%clk 0:02:16.2]} 17. Nxe4 {[%clk 0:02:12.4]} 17... Nf5 {[%clk 0:02:16.3]} 18.
Bg5 {[%clk 0:01:40.2]} 18... Qb8 {[%clk 0:02:09.1]} 19. Qd2 {[%clk 0:01:09.4]}
19... Nd4 {[%clk 0:01:25.5]} 20. Bh6 {[%clk 0:01:04.7]} 20... Bf5 {[%clk
0:01:18.5]} 21. Bxg7 {[%clk 0:01:03.3]} 21... Kxg7 {[%clk 0:01:18.3]} 22. Ng5
{[%clk 0:00:56.2]} 22... Qb5 {[%clk 0:01:11.1]} 23. Nxf5+ {[%clk 0:00:54.4]}
23... Rxf5 {[%clk 0:00:47.1]} 24. Ne6+ {[%clk 0:00:53.9]} 24... Nxe6 {[%clk
0:00:46.9]} 25. dxe6 {[%clk 0:00:54.8]} 25... Qe8 {[%clk 0:00:45.3]} 26. Rac1
{[%clk 0:00:53.3]} 26... Rc8 {[%clk 0:00:38.1]} 27. Qd5 {[%clk 0:00:35.6]} 27...
Kf6 {[%clk 0:00:38.2]} 28. f4 {[%clk 0:00:30.5]} 28... exf4 {[%clk 0:00:37.6]}
29. Qd4+ {[%clk 0:00:26.5]} 29... Re5 {[%clk 0:00:30.1]} 30. gxf4 {[%clk
0:00:24.9]} 1-0